bitfinex-derivatives/quotes_ETHF0:USTF0_20250807
["timestamp","ask_amount","ask_price","bid_price","bid_amount"]
[1754559356756,1.7341,3720.5,3720.4,1.7154]
[1754559357057,1.2744,3720.5,3720.4,1.7154]
[1754559357257,1.7341,3720.5,3720.4,1.7154]
[1754559357756,1.7341,3720.5,3720.4,1.4077]
[1754559359657,0.6955,3720.5,3720.4,1.6884]
[1754559359857,0.94514,3720.7,3720.6,1.1212]
[1754559360051,1.55814,3720.7,3720.6,1.6979]
[1754559360249,2.01984,3720.7,3720.6,1.6979]
[1754559360464,1.1184,3721.1,3721.0,1.51229]
[1754559360652,3.8208,3721.4,3721.3,1.6979]
[1754559360854,3.93777487,3721.4,3721.3,1.6979]
[1754559361053,3.2078,3721.4,3721.3,1.6979]
[1754559361755,4.9909,3721.4,3720.9,0.7383]
[1754559361955,1.7831,3721.2,3721.1,0.731]
[1754559362152,0.7084,3720.9,3720.8,1.51231]
[1754559362358,1.7831,3720.9,3720.8,1.51231]
[1754559362556,1.7831,3720.9,3720.8,1.79301]
[1754559362759,1.7831,3720.9,3720.8,2.23531]
[1754559364857,1.3214,3720.9,3720.8,2.23531]
[1754559366063,1.3214,3720.9,3720.8,1.6979]
[1754559366268,1.7831,3720.9,3720.8,1.6979]
[1754559370964,1.3214,3720.9,3720.8,1.6979]
[1754559371367,1.7831,3720.9,3720.8,1.6979]
[1754559374359,0.74212,3720.8,3720.7,0.53743]
[1754559374658,1.7831,3720.8,3720.7,0.53743]
[1754559376570,1.7831,3720.8,3720.7,0.97973]
[1754559376769,1.7831,3720.7,3720.6,0.53744]
[1754559377165,2.32053,3720.7,3720.6,0.53744]
[1754559377469,2.32053,3720.7,3720.6,1.95464]
[1754559377874,2.32053,3720.7,3720.6,0.9184]
[1754559378068,1.7831,3720.6,3720.5,1.95466]
[1754559378275,1.3214,3720.6,3720.5,2.23536]
[1754559378567,4.7879,3720.9,3720.8,1.6979]
[1754559378770,4.4835,3720.9,3720.8,1.6979]
[1754559378965,4.0218,3720.9,3720.8,1.6979]
[1754559379163,3.93935045,3721.3,3721.1,0.53738]
[1754559379374,3.2078,3721.3,3721.2,1.6979]
[1754559379566,1.23895045,3721.6,3721.5,0.82602]
[1754559379763,1.75225045,3721.6,3721.5,2.23522]
[1754559379969,0.5133,3721.6,3721.5,2.23522]
[1754559380270,1.7831,3721.6,3721.5,2.23522]
[1754559381975,0.53732,3721.5,3721.3,0.53733]
[1754559382275,1.55019,3721.1,3720.7,0.4423]
[1754559382574,1.0128,3720.8,3720.7,1.21633]
[1754559382766,1.0128,3720.8,3720.7,1.01353]
[1754559383075,1.7831,3720.8,3720.7,1.01353]
[1754559383669,1.7831,3720.8,3720.7,1.45583]
[1754559384673,1.7831,3720.8,3720.7,0.9184]
[1754559384879,1.7831,3720.8,3720.7,0.2887]
[1754559387185,1.7831,3720.6,3720.5,1.45586]
[1754559387377,1.7831,3720.6,3720.5,1.95466]
[1754559389484,1.7831,3720.6,3720.5,1.4172]
[1754559389780,1.7831,3720.6,3720.5,1.1212]
[1754559390284,1.7831,3720.6,3720.5,1.4256]
[1754559390877,0.84151,3720.9,3720.5,0.5072]
[1754559391079,0.3037,3721.0,3720.9,2.26211]
[1754559391381,1.7077,3721.0,3720.9,1.7247]
[1754559392083,1.7077,3721.0,3720.9,1.4284]
[1754559392280,4.9155,3721.0,3720.9,0.7306]
[1754559392782,4.9155,3721.0,3720.9,1.4284]
[1754559393577,5.64672262,3721.0,3720.9,1.4284]
[1754559393782,4.9155,3721.0,3720.9,1.4284]
[1754559394385,5.64672262,3721.0,3720.9,1.7247]
[1754559394679,4.9155,3721.0,3720.9,1.7247]
[1754559395278,5.64672262,3721.0,3720.9,1.7247]
[1754559395475,4.9155,3721.0,3720.9,1.7247]
[1754559396078,5.64672262,3721.0,3720.9,1.7247]
[1754559396377,0.6671,3720.8,3720.7,0.53742]
[1754559396578,1.7077,3720.8,3720.7,0.4495]
[1754559396775,0.6671,3720.6,3720.5,1.21196]
[1754559396976,1.7077,3720.6,3720.5,1.96586]
[1754559397484,1.7077,3720.6,3720.5,0.81856]
[1754559398282,1.7077,3720.6,3720.5,0.2811]
[1754559398984,1.7077,3720.6,3720.5,0.92]
[1754559401186,1.7077,3720.6,3720.5,0.4705]
[1754559401490,0.6671,3720.5,3720.4,1.45747]
[1754559401684,1.7077,3720.5,3720.4,1.96587]
[1754559402182,1.7077,3720.5,3720.4,2.26217]
[1754559403683,0.73122262,3720.9,3720.6,1.7247]
[1754559403878,22.0646,3721.0,3720.9,1.7247]
[1754559404073,23.46292262,3721.0,3720.9,1.7247]
[1754559404284,23.89572262,3721.0,3720.9,1.7247]
[1754559404683,23.89572262,3721.0,3720.9,1.4284]
[1754559404888,24.43312262,3721.0,3720.9,1.124]
[1754559405184,24.43312262,3721.0,3720.9,1.7247]
[1754559408198,3.93902262,3721.0,3720.9,1.7247]
[1754559408395,4.0091,3721.0,3720.9,1.7247]
[1754559408687,0.73122262,3721.2,3721.0,0.53739]
[1754559408889,0.73122262,3721.4,3721.3,1.7247]
[1754559409080,0.73122262,3721.6,3721.5,1.7247]
[1754559409281,0.73122262,3721.9,3721.8,0.53728]
[1754559409480,0.73122262,3722.0,3721.9,1.7247]
[1754559409679,0.3037,3722.1,3722.0,2.26195]
[1754559410184,0.3037,3722.5,3722.3,0.53719]
[1754559410389,0.9888,3722.4,3722.3,1.7247]
[1754559410586,1.7077,3722.4,3722.3,1.7247]
[1754559410890,3.93902262,3722.8,3722.3,1.7247]
[1754559411192,4.9155,3722.8,3722.7,1.4284]
[1754559411390,4.9155,3722.8,3722.7,1.7247]
[1754559412488,4.9155,3722.8,3722.7,1.4284]
[1754559412694,0.6671,3722.5,3722.4,1.4284]
[1754559412991,1.7077,3722.5,3722.4,1.7247]
[1754559414090,1.7077,3722.5,3722.4,1.4284]
[1754559415794,1.7077,3722.5,3722.4,1.7247]
[1754559416295,1.404,3722.5,3722.3,0.53719]
[1754559416593,1.7077,3722.4,3722.3,1.96559]
[1754559416994,0.3037,3722.5,3722.4,1.41898]
[1754559417189,0.9888,3722.5,3722.4,2.26188]
[1754559417394,1.7077,3722.5,3722.4,1.4284]
[1754559417988,1.7077,3722.5,3722.4,0.1894]
[1754559418194,1.7077,3722.4,3722.3,1.124]
[1754559418389,1.7077,3722.4,3722.3,0.7306]
[1754559418591,2.2449,3722.4,3722.3,0.7306]
[1754559418895,1.7077,3722.4,3722.3,0.92]
[1754559419192,2.24489,3722.4,3722.3,1.2066]
[1754559419592,2.24489,3722.4,3722.3,1.4023]
[1754559419793,1.7077,3722.4,3722.3,1.4023]
[1754559420093,1.7077,3722.4,3722.3,1.7052]
[1754559420591,1.7077,3722.4,3722.3,1.4023]
[1754559420788,1.7077,3722.4,3722.3,1.1157]
[1754559420993,1.22142,3722.2,3722.1,0.2928]
[1754559421796,2.22572,3722.2,3722.1,0.2928]
[1754559422096,2.22572,3722.2,3722.1,1.45763]
[1754559422297,2.22572,3722.2,3722.1,1.207]
[1754559422793,2.22572,3722.2,3722.1,0.9204]
[1754559422990,1.6885,3722.2,3722.1,1.4027]
[1754559423498,1.6885,3722.2,3722.1,1.7056]
[1754559423700,0.2974,3722.2,3722.1,1.7056]
[1754559423902,1.79924,3722.8,3722.7,1.274]
[1754559424200,1.6885,3722.8,3722.7,1.7056]
[1754559429701,4.8963,3722.8,3722.7,1.7056]
[1754559430002,4.8963,3722.8,3722.7,1.4027]
[1754559433001,4.8963,3722.8,3722.7,1.7056]
[1754559434501,4.8963,3722.8,3722.7,2.24274]
[1754559436808,4.8963,3722.8,3722.7,1.7056]
[1754559437004,3.2078,3722.8,3722.7,1.7056]
[1754559437306,0.6905,3723.0,3722.9,0.6845]
[1754559437507,0.4982,3723.0,3722.9,1.7056]
[1754559437903,0.7787,3723.0,3722.9,1.7056]
[1754559438104,0.6842,3723.3,3723.2,0.6845]
[1754559438310,2.22556,3723.3,3723.2,0.6845]
[1754559438506,1.2649762,3723.3,3723.2,0.2928]
[1754559438708,2.9534762,3723.3,3723.2,0.2928]
[1754559438907,2.9534762,3723.3,3723.2,0.7244]
[1754559439209,2.9534762,3723.3,3723.2,0.9204]
[1754559439412,2.9534762,3723.3,3723.2,0.2928]
[1754559439608,1.22129,3723.1,3723.0,0.9204]
[1754559439803,0.53715,3722.7,3722.6,0.6273]
[1754559440003,0.53715,3722.7,3721.9,1.34315]
[1754559440004,0.53717,3722.5,3722.4,0.7244]
[1754559440299,0.7279162,3722.9,3722.2,0.2928]
[1754559440300,1.0291,3722.3,3722.2,0.2928]
[1754559440606,0.53725,3722.0,3721.9,0.2866]
[1754559440803,1.51885,3722.0,3721.9,1.207]
[1754559441108,2.22575,3722.0,3721.9,0.9204]
[1754559441513,1.6885,3722.0,3721.9,0.9204]
[1754559441805,0.53716,3722.6,3722.3,0.5372]
[1754559442011,0.53716,3722.6,3721.7,4.55101]
[1754559442012,1.6885,3722.5,3722.4,1.7056]
[1754559444507,1.408,3722.5,3722.4,1.4027]
[1754559444709,1.6885,3722.5,3722.4,1.4027]
[1754559445209,0.6842,3722.1,3722.0,1.02604]
[1754559445513,1.6885,3722.1,3722.0,1.1161]
[1754559445714,1.6885,3722.1,3722.0,1.4027]
[1754559446008,0.6842,3723.3,3723.2,0.82987]
[1754559446215,1.41415896,3723.3,3723.2,2.24267]
[1754559446417,0.72995896,3723.3,3723.2,2.24267]
[1754559447417,0.72995896,3723.4,3723.3,1.7056]
[1754559447815,1.70095896,3723.8,3723.7,2.2426]
[1754559448116,1.99205896,3723.8,3723.7,2.2426]
[1754559448314,2.41845896,3723.8,3723.7,2.2426]
[1754559449012,2.41845896,3723.8,3723.7,1.7056]
[1754559450007,1.6885,3723.8,3723.7,1.7056]
[1754559450213,2.41845896,3723.8,3723.7,1.7056]
[1754559450605,0.72995896,3723.8,3723.7,1.7056]
[1754559450819,0.72995896,3723.9,3723.8,2.26509]
[1754559451010,1.0,3724.0,3723.8,1.22689]
[1754559451612,1.0,3724.0,3723.9,1.7281]
[1754559453116,1.5034,3724.0,3723.9,1.7281]
[1754559453616,1.9879,3724.0,3723.9,1.7281]
[1754559456618,2.4501,3724.0,3723.9,1.7281]
[1754559457818,2.7387,3724.0,3723.9,1.7281]
[1754559458121,2.7387,3724.0,3723.9,1.4342]
[1754559458328,2.7387,3724.0,3723.9,1.7281]
[1754559458714,2.2765,3724.0,3723.9,1.7281]
[1754559459816,2.7387,3724.0,3723.9,1.7281]
[1754559461916,1.9879,3724.0,3723.9,1.7281]
[1754559462121,2.7387,3724.0,3723.9,1.7281]
[1754559464020,2.7387,3724.0,3723.9,1.4342]
[1754559464324,2.7387,3724.0,3723.9,1.7281]
[1754559466330,1.7387,3723.8,3723.6,0.53701]
[1754559466517,0.6867,3723.3,3723.2,0.53707]
[1754559466727,1.7387,3723.3,3723.2,0.53707]
[1754559466926,1.7387,3723.3,3723.2,1.78477]
[1754559467119,2.34243,3724.0,3723.9,1.0423]
[1754559467120,2.02327,3724.0,3723.9,1.0423]
[1754559467316,1.2237,3723.8,3723.6,0.53701]
[1754559467623,0.5898,3723.7,3723.6,0.53701]
[1754559467820,1.7387,3723.7,3723.6,0.53701]
[1754559468019,2.27572,3723.6,3723.5,1.29452]
[1754559468219,2.27572,3723.6,3723.5,0.53702]
[1754559468822,1.7387,3723.6,3723.5,0.53702]
[1754559469021,4.2078,3724.0,3723.9,2.26507]
[1754559469022,1.0,3724.0,3723.9,2.26507]
[1754559469227,0.536,3724.0,3723.9,5.47287]
[1754559469519,0.3057,3724.6,3724.5,1.11759]
[1754559469725,0.3057,3724.6,3724.5,1.81429]
[1754559469929,0.5943,3724.6,3724.5,1.81429]
[1754559470229,0.792,3724.6,3724.5,1.81429]
[1754559470623,3.2078,3725.2,3724.5,1.81429]
[1754559470827,0.9708,3725.9,3725.8,1.50729]
[1754559471134,1.433,3725.9,3725.8,1.50729]
[1754559472227,1.433,3725.9,3725.8,0.6858]
[1754559472422,0.4622,3725.8,3725.5,0.82153]
[1754559472731,1.433,3725.6,3725.5,1.33143]
[1754559473224,0.6867,3726.0,3725.9,0.53668]
[1754559473430,1.7387,3726.0,3725.9,1.22248]
[1754559474031,1.7387,3726.0,3725.9,1.50728]
[1754559475626,1.433,3726.0,3725.9,1.22248]
[1754559475826,1.7387,3726.0,3725.9,1.22248]
[1754559476326,1.7387,3726.0,3725.9,1.50728]
[1754559478332,1.7387,3726.0,3725.9,0.9706]
[1754559478633,1.433,3725.6,3725.5,1.11204]
[1754559479141,0.6766,3726.0,3725.9,1.49237]
[1754559479329,1.7241,3726.0,3725.9,0.6769]
[1754559480436,0.4864,3725.6,3725.4,0.2895]
[1754559480632,0.4864,3725.6,3724.7,1.34214]
[1754559480633,0.6766,3725.3,3725.2,1.02228]
[1754559480835,1.7241,3725.3,3725.1,0.53679]
[1754559481138,0.6766,3725.1,3724.6,3.2078]
[1754559481345,0.6766,3725.0,3724.9,0.2895]
[1754559481831,0.6766,3725.0,3724.9,0.4855]
[1754559482136,1.4206,3725.0,3724.9,1.2583]
[1754559482629,0.4717,3725.0,3724.9,1.2583]
[1754559482835,3.2078,3725.3,3725.2,1.79508]
[1754559483233,0.4625,3725.9,3725.2,0.53678]
[1754559483429,1.4206,3725.9,3725.8,1.79499]
[1754559484041,1.7241,3725.9,3725.8,0.9557]
[1754559484233,1.7241,3725.9,3725.8,0.6769]
[1754559484734,1.4206,3725.9,3725.8,1.0721]
[1754559485033,1.4206,3725.9,3725.8,1.2583]
[1754559486239,1.7241,3725.9,3725.8,1.0721]
[1754559487735,1.4206,3725.3,3725.2,1.0721]
[1754559487936,1.4206,3725.3,3725.2,1.2583]
[1754559489643,1.4206,3725.3,3725.2,0.6769]
[1754559489941,1.7241,3725.3,3725.2,0.9557]
[1754559490738,1.4206,3725.3,3725.2,1.0721]
[1754559491144,1.4206,3725.3,3725.2,1.2583]
[1754559495739,3.2078,3725.6,3725.2,1.2583]
[1754559495946,1.1391,3726.0,3725.9,0.3874]
[1754559496239,1.97927,3726.0,3725.9,0.9557]
[1754559496443,1.97927,3726.0,3725.9,1.0721]
[1754559496646,2.26077,3726.0,3725.9,1.0721]
[1754559497541,1.95727,3726.0,3725.9,1.2583]
[1754559497748,1.21331,3725.7,3725.6,0.3874]
[1754559498047,1.51681,3725.7,3725.6,0.9557]
[1754559498248,2.26081,3725.7,3725.6,1.0721]
[1754559499141,1.7241,3725.7,3725.6,1.0721]
[1754559500648,1.4206,3725.7,3725.6,1.2583]
[1754559506357,1.7241,3725.7,3725.6,1.0721]
[1754559506950,1.4206,3725.7,3725.6,1.2583]
[1754559508056,1.7241,3725.7,3725.6,1.2583]
[1754559508358,1.4206,3725.7,3725.6,1.2583]
[1754559508856,1.7241,3725.7,3725.6,0.2895]
[1754559509859,1.7241,3725.7,3725.6,0.4855]
[1754559510056,1.4206,3725.7,3725.6,1.2883]
[1754559511260,1.44,3725.8,3725.7,1.82951]
[1754559511554,1.46246153,3726.0,3725.9,1.2928]
[1754559511759,2.16636153,3726.0,3725.9,1.2928]
[1754559517863,1.03266153,3726.0,3725.9,1.2928]
[1754559518069,0.72636153,3726.0,3725.9,1.2928]
[1754559518361,3.2078,3726.1,3726.0,1.82947]
[1754559519162,1.46246153,3726.6,3726.5,1.8294]
[1754559519363,1.44,3726.6,3726.5,1.8294]
[1754559520161,1.44,3726.6,3726.5,1.2928]
[1754559520465,0.6012,3726.6,3726.0,0.2952]
[1754559520663,1.44,3726.2,3726.1,1.82946]
[1754559520863,1.7483,3726.2,3726.1,0.9901]
[1754559521765,1.7483,3726.2,3726.1,1.1065]
[1754559522765,1.44,3726.2,3726.1,0.6949]
[1754559522965,1.7483,3726.2,3726.1,0.49]
[1754559523469,1.7483,3726.2,3726.1,0.2912]
[1754559523969,2.28498,3725.9,3725.8,0.6949]
[1754559524966,2.28498,3725.9,3725.8,0.9901]
[1754559526071,1.77821,3725.7,3725.6,0.9901]
[1754559526266,1.77821,3725.7,3725.4,0.53675]
[1754559526267,1.24064,3725.5,3725.4,0.53675]
[1754559526479,1.97674,3725.5,3725.4,1.53435]
[1754559526673,1.97674,3725.5,3725.4,1.82955]
[1754559527073,1.44,3725.5,3725.4,1.82955]
[1754559529181,1.2429,3725.5,3725.4,1.82955]
[1754559531684,1.44,3725.5,3725.4,1.82955]
[1754559532676,1.7483,3725.5,3725.4,0.49]
[1754559532878,1.7483,3725.5,3725.4,0.2912]
[1754559533078,0.95,3724.7,3724.6,0.9077]
[1754559533273,1.7483,3724.7,3724.6,0.49]
[1754559533676,0.7374,3724.4,3724.3,0.494]
[1754559533884,2.2852,3724.4,3724.3,0.7852]
[1754559534082,1.44,3724.4,3724.3,1.2928]
[1754559534484,1.7483,3724.4,3724.3,1.1065]
[1754559535084,1.44,3724.4,3724.3,1.1065]
[1754559535789,1.44,3724.4,3724.3,1.2928]
[1754559535990,1.7483,3724.4,3724.3,0.9901]
[1754559536486,1.44,3724.1,3724.0,0.49]
[1754559536689,1.7483,3724.1,3724.0,0.49]
[1754559537489,1.7483,3724.1,3724.0,1.64346]
[1754559537985,0.7039,3723.9,3723.8,0.1988]
[1754559538183,1.7483,3723.9,3723.8,0.2912]
[1754559538380,1.35216,3723.4,3723.2,0.6104]
[1754559538585,1.44,3723.3,3723.2,0.5201]
[1754559538785,1.7483,3723.3,3723.2,0.5201]
[1754559538981,1.7483,3723.3,3723.2,0.8052]
[1754559539189,42.5483,3723.3,3723.2,1.1046]
[1754559539790,42.24,3723.3,3723.2,1.2882]
[1754559539989,41.1063,3723.3,3723.2,1.2882]
[1754559540391,40.8,3723.3,3723.2,1.2882]
[1754559540794,3.2078,3723.6,3723.5,0.5747]
[1754559541093,3.2078,3723.6,3723.5,1.81103]
[1754559541891,4.9205,3723.6,3723.5,1.31303]
[1754559542087,0.9522,3723.5,3723.4,1.31304]
[1754559542294,1.7127,3723.5,3723.4,1.51264]
[1754559542795,1.7127,3723.5,3723.4,1.62744]
[1754559544990,1.1401,3723.5,3723.4,1.62744]
[1754559545189,1.4261,3723.5,3723.4,1.81104]
[1754559545390,1.4261,3723.5,3723.4,1.274]
[1754559545798,1.96313,3723.5,3723.4,1.274]
[1754559545997,2.24973,3723.5,3723.4,1.274]
[1754559546393,2.24973,3723.5,3723.4,1.0904]
[1754559547295,1.96313,3723.5,3723.4,1.274]
[1754559547492,1.96313,3723.5,3723.4,0.499]
[1754559547698,0.9655,3723.1,3723.0,0.8069]
[1754559547998,0.9655,3723.1,3723.0,0.6905]
[1754559548186,1.7127,3723.1,3723.0,1.092]
[1754559550600,1.7127,3723.1,3723.0,0.9756]
[1754559550802,1.7127,3723.1,3723.0,1.092]
[1754559551295,1.7127,3723.1,3723.0,0.2851]
[1754559551502,2.24984,3722.8,3722.7,1.092]
[1754559551890,1.96324,3722.8,3722.7,1.092]
[1754559552196,3.2078,3723.2,3722.5,1.11456]
[1754559552197,0.6795,3722.6,3722.5,1.11456]
[1754559552501,1.4261,3722.6,3722.5,1.11456]
[1754559552899,1.4261,3722.6,3722.5,1.81546]
[1754559554302,1.234,3722.6,3722.5,1.81546]
[1754559554791,0.948,3722.6,3722.5,1.81546]
[1754559555698,1.4261,3722.6,3722.5,1.81546]
[1754559555898,1.4261,3722.6,3722.5,1.092]
[1754559556092,1.7127,3722.6,3722.5,0.9756]
[1754559556296,1.7127,3722.6,3722.5,0.4766]
[1754559557099,1.7127,3722.6,3722.5,1.092]
[1754559557296,42.5127,3722.6,3722.5,1.092]
[1754559559004,42.5127,3722.6,3722.5,0.9756]
[1754559559297,42.5127,3722.6,3722.5,0.4766]
[1754559559504,1.9633,3722.4,3722.3,0.9756]
[1754559559709,1.9633,3722.4,3722.3,1.092]
[1754559560800,1.4261,3722.4,3722.3,1.2783]
[1754559561104,2.2499,3722.3,3722.2,1.34411]
[1754559561604,1.9633,3722.3,3722.2,1.81551]
[1754559563406,1.9633,3722.3,3722.2,1.2783]
[1754559564406,1.4261,3722.3,3722.2,1.2783]
[1754559564599,40.8,3722.6,3722.5,0.5774]
[1754559564905,1.58366,3722.7,3722.6,1.2783]
[1754559565098,1.77116,3722.7,3722.6,1.2783]
[1754559565503,2.69134251,3722.7,3722.6,1.2783]
[1754559565906,1.96329,3722.4,3722.3,1.092]
[1754559566101,2.24989,3722.4,3722.3,1.092]
[1754559566807,1.4261,3722.4,3722.3,1.2783]
[1754559567206,0.53717,3722.6,3722.5,0.1915]
[1754559567511,0.7605,3722.7,3722.6,1.11456]
[1754559567710,1.96271152,3722.7,3722.6,1.53036]
[1754559568208,1.96271152,3722.7,3722.6,1.81546]
[1754559568609,2.15481152,3722.7,3722.6,1.81546]
[1754559570007,2.15481152,3722.7,3722.6,1.2783]
[1754559570207,2.44861152,3722.7,3722.6,1.2783]
[1754559570806,2.44861152,3722.7,3722.6,1.092]
[1754559571006,2.44861152,3722.7,3722.6,0.9756]
[1754559571413,2.44861152,3722.7,3722.6,0.6762]
[1754559571715,1.7199,3722.7,3722.6,0.6762]
[1754559572012,2.44998551,3722.7,3722.6,0.6762]
[1754559573614,2.44998551,3722.7,3722.6,0.9805]
[1754559573914,2.44998551,3722.7,3722.6,0.4766]
[1754559574513,2.44998551,3722.7,3722.6,0.9739]
[1754559574713,2.44998551,3722.7,3722.6,1.0904]
[1754559575716,2.44998551,3722.7,3722.6,0.4766]
[1754559576815,2.44998551,3722.7,3722.6,1.0904]
[1754559577012,2.15618551,3722.7,3722.6,1.2769]
[1754559578414,0.73008551,3722.7,3722.6,1.2769]
[1754559580617,1.47498551,3722.7,3722.6,1.2769]
[1754559580815,1.96668551,3722.7,3722.6,1.2769]
[1754559581015,2.16008551,3722.7,3722.6,1.2769]
[1754559582522,1.43,3722.7,3722.6,1.2769]
[1754559583224,1.7238,3722.7,3722.6,0.6696]
[1754559583420,1.7238,3722.7,3722.6,0.4766]
[1754559583718,2.26101,3722.3,3722.2,0.969]
[1754559584225,2.26101,3722.3,3722.2,1.0855]
[1754559584518,0.82257,3721.9,3721.8,1.80925]
[1754559584716,1.77387,3721.9,3721.8,1.80925]
[1754559585119,1.2366,3721.9,3721.8,1.80925]
[1754559585419,0.9404,3721.9,3721.8,1.80925]
[1754559585924,0.7449,3721.9,3721.8,1.80925]
[1754559586520,1.2366,3721.9,3721.8,1.80925]
[1754559586820,1.1338,3721.9,3721.8,1.272]
[1754559587123,1.7238,3721.9,3721.8,0.969]
[1754559587321,1.9673,3721.6,3721.5,1.0855]
[1754559588427,2.2611,3721.6,3721.5,1.0855]
[1754559588928,1.7238,3721.6,3721.5,1.0855]
[1754559589126,1.43,3721.6,3721.5,0.2816]
[1754559589328,1.7238,3721.6,3721.5,0.4717]
[1754559589827,1.7238,3721.6,3721.5,0.969]
[1754559590029,1.7238,3721.6,3721.2,3.3243]
[1754559590030,0.53732,3721.5,3721.2,3.74516]
[1754559590229,0.6742,3721.3,3721.2,4.54906]
[1754559590529,1.7238,3721.3,3721.2,4.54906]
[1754559590828,42.5238,3721.3,3721.2,0.4717]
[1754559591124,42.5238,3721.3,3721.2,1.0855]
[1754559591327,42.23,3721.3,3721.2,1.272]
[1754559591526,41.0853,3721.3,3721.2,1.272]
[1754559591725,40.8,3721.3,3721.2,1.272]
[1754559591924,40.3,3721.3,3721.2,1.272]
[1754559592120,3.2078,3721.6,3721.2,1.84068]
[1754559592327,4.6378,3721.6,3721.5,1.62282]
[1754559592726,4.9316,3721.6,3721.5,0.53732]
[1754559592931,45.7316,3721.6,3721.5,0.53732]
[1754559593425,1.21152,3721.5,3721.4,0.53732]
[1754559593730,2.26112,3721.5,3721.4,0.81892]
[1754559593930,2.26112,3721.5,3721.4,0.2816]
[1754559595528,1.7238,3721.5,3721.4,0.2816]
[1754559595832,1.7238,3721.5,3721.4,0.4717]
[1754559597832,0.4872,3721.5,3721.0,3.2078]
[1754559598137,0.53739,3721.0,3719.6,1.34398]
[1754559598326,0.53739,3721.0,3720.9,1.15759486]
[1754559599129,0.53829,3721.0,3720.9,2.09439486]
[1754559600035,0.53829,3721.0,3720.9,1.43919486]
[1754559600235,0.53829,3721.0,3720.9,1.24909486]
[1754559601434,3.74518,3721.1,3720.9,2.37159486]
[1754559601637,3.74518,3721.1,3721.0,1.6857]
[1754559602136,3.74608,3721.1,3721.0,1.6857]
[1754559602438,3.2078,3721.1,3721.0,1.6857]
[1754559602828,3.74517,3721.1,3721.0,1.6857]
[1754559603034,3.74607,3721.1,3721.0,1.6857]
[1754559603638,3.2087,3721.1,3721.0,1.6857]
[1754559604039,3.2078,3721.1,3721.0,1.6857]
[1754559604235,3.74517,3721.1,3721.0,1.6857]
[1754559605036,3.2078,3721.1,3721.0,1.6857]
[1754559605333,3.2078,3721.5,3721.3,0.53733]
[1754559605538,44.0078,3721.6,3721.5,1.6857]
[1754559605934,44.0078,3721.6,3721.0,0.5703]
[1754559606129,3.2087,3721.1,3721.0,1.6857]
[1754559609644,3.2078,3721.1,3721.0,1.6857]
[1754559616444,3.7451,3721.7,3721.6,1.2227]
[1754559616649,3.2078,3721.7,3721.6,1.6857]
[1754559622247,3.74503,3722.2,3722.1,2.22293]
[1754559624145,3.2078,3722.2,3722.1,1.6857]
[1754559626352,3.2078,3722.2,3722.1,0.2816]
[1754559626546,3.2078,3722.2,3722.1,0.7571]
[1754559626747,3.2078,3722.2,3722.1,1.6857]
[1754559631148,40.8,3722.5,3722.4,1.22169]
[1754559631351,40.8,3722.5,3722.4,2.23029]
[1754559632050,40.8,3722.5,3722.4,1.6931]
[1754559637461,3.74495,3722.7,3722.5,2.23027]
[1754559637661,3.74495,3722.7,3722.6,1.6931]
[1754559638060,44.54495,3722.7,3722.6,1.6931]
[1754559638456,44.0078,3722.7,3722.6,1.6931]
[1754559638663,3.2078,3722.7,3722.6,1.6931]
[1754559639263,44.0078,3722.7,3722.6,1.6931]
[1754559640161,3.2078,3722.7,3722.6,1.6931]
[1754559641161,3.2078,3722.7,3722.6,0.2794]
[1754559641366,3.2078,3722.7,3722.4,0.3055]
[1754559641565,3.74495,3722.7,3722.6,2.23026]
[1754559642062,3.74495,3722.7,3722.6,1.6931]
[1754559643069,3.2078,3722.7,3722.6,1.6931]
[1754559648774,0.53711,3723.0,3722.9,0.53711]
[1754559648978,0.53711,3723.0,3722.9,1.2694]
[1754559649277,41.33711,3723.0,3722.9,1.2694]
[1754559649476,42.06825294,3723.0,3722.9,1.2694]
[1754559650079,42.06825294,3723.0,3722.9,1.6931]
[1754559652681,41.53114294,3723.0,3722.9,1.6931]
[1754559653484,0.73114294,3723.0,3722.9,1.6931]
[1754559662787,0.73114294,3723.1,3723.0,2.2657]
[1754559667494,3.93894294,3723.2,3723.0,2.2657]
[1754559667690,3.93894294,3723.2,3723.1,1.7286]
[1754559668989,3.93894294,3723.2,3723.1,1.2804]
[1754559669193,3.93894294,3723.2,3723.1,1.7286]
[1754559669493,0.73114294,3723.2,3723.1,1.7286]
[1754559669897,40.8,3723.3,3723.2,1.51627]
[1754559670090,41.53103869,3723.3,3723.2,1.51627]
[1754559670492,41.53103869,3723.3,3723.2,2.26567]
[1754559671195,0.73103869,3723.3,3723.2,2.26567]
[1754559671389,3.2078,3723.6,3723.4,1.14204]
[1754559671390,0.73103869,3723.5,3723.4,1.14204]
[1754559671700,41.53103869,3723.5,3723.4,1.14204]
[1754559672291,41.53103869,3723.5,3723.4,1.77554]
[1754559672492,41.53103869,3723.5,3722.3,3.2078]
[1754559672493,41.53103869,3723.5,3722.4,1.34297]
[1754559672684,0.73103869,3723.4,3722.6,1.3429]
[1754559672891,0.73103869,3723.4,3722.4,1.34297]
[1754559672892,0.53709,3723.1,3723.0,0.3045]
[1754559673994,0.53711,3723.0,3722.7,0.3005]
[1754559674196,0.73103869,3723.2,3722.9,0.3045]
[1754559674398,3.2078,3723.0,3722.9,0.3045]
[1754559674601,3.93883869,3723.0,3722.9,1.2385]